bitfinex/quotes_ETHUSD_20240824
["timestamp","ask_amount","ask_price","bid_price","bid_amount"]
[1724496024043,3.59598,2780.9,2780.3,6.23739955]
[1724496024168,7.19202,2780.9,2780.3,6.23739955]
[1724496024569,3.59608,2780.8,2780.3,6.23739955]
[1724496027403,3.59598,2780.9,2780.3,2.64066955]
[1724496027603,3.59622,2780.7,2780.3,2.64066955]
[1724496028205,3.59636,2780.6,2780.3,2.64066955]
[1724496029713,3.59622,2780.7,2780.3,2.64066955]
[1724496029914,7.19252,2780.7,2780.3,2.64066955]
[1724496030411,3.59651,2780.5,2780.3,2.64066955]
[1724496030800,3.5966,2780.4,2780.3,2.64066955]
[1724496031109,8.44484971,2780.4,2780.3,2.64066955]
[1724496047131,3.5966,2780.4,2780.3,2.64066955]
[1724496047294,3.59648,2780.5,2780.3,4.95426955]
[1724496048410,3.5966,2780.4,2780.3,2.64066955]
[1724496052850,4.44107297,2780.4,2780.3,2.64066955]
[1724496053017,9.28932268,2780.4,2780.3,2.64066955]
[1724496054541,11.55902268,2780.4,2780.3,2.64066955]
[1724496056671,9.28932268,2780.4,2780.3,2.64066955]
[1724496056832,8.03767297,2780.4,2780.3,2.64066955]
[1724496057352,7.1932,2780.4,2780.3,2.64066955]
[1724496057551,3.5966,2780.4,2780.3,2.64066955]
[1724496057880,3.59651,2780.5,2780.3,2.64066955]
[1724496058048,3.5966,2780.4,2780.3,2.64066955]
[1724496058922,9.4629,2780.4,2780.3,2.64066955]
[1724496059140,10.53435497,2780.4,2780.3,2.64066955]
[1724496060339,14.13095497,2780.4,2780.3,2.64066955]
[1724496065667,17.13095497,2780.4,2780.3,2.64066955]
[1724496066376,3.59776,2779.5,2779.4,2.4962]
[1724496066666,3.59776,2779.5,2779.2,2.4962]
[1724496069153,4.84940971,2779.5,2779.2,2.4962]
[1724496069356,4.84940971,2779.5,2778.9,2.50161471]
[1724496069357,3.59841,2779.0,2778.9,2.50161471]
[1724496069589,3.59841,2779.0,2778.9,0.00541471]
[1724496069772,7.19642,2779.2,2778.9,0.00541471]
[1724496069976,3.59817,2779.2,2778.9,0.00541471]
[1724496070287,3.59831,2779.1,2778.9,0.00541471]
[1724496071377,3.59841,2779.0,2778.9,0.00541471]
[1724496079156,10.32639,2779.0,2778.9,0.00541471]
[1724496079501,10.32639,2779.0,2778.2,2.4962]
[1724496079502,3.59932,2778.3,2778.2,2.4962]
[1724496079659,3.59932,2778.3,2778.0,2.4962]
[1724496079861,3.59947,2778.2,2778.0,2.4962]
[1724496081905,3.59922,2778.4,2778.0,2.4962]
[1724496082258,3.59977,2778.0,2777.5,2.4962]
[1724496082453,4.319091,2778.4,2777.6,3.60021]
[1724496082454,3.59925,2778.4,2777.6,3.60021]
[1724496082669,3.5991,2778.5,2777.8,6.0683]
[1724496082884,3.59935,2778.3,2777.8,6.0683]
[1724496083280,3.59927,2778.4,2777.9,2.4684]
[1724496083482,3.59936,2778.3,2777.9,2.4684]
[1724496084396,3.59951,2778.2,2777.9,2.4684]
[1724496086319,3.5996,2778.1,2777.9,2.4684]
[1724496090328,7.1988,2778.3,2777.9,2.4684]
[1724496090489,3.59936,2778.3,2777.9,2.4684]
[1724496091126,3.59946,2778.2,2777.9,2.4684]
[1724496092108,3.59959,2778.1,2777.9,2.4684]
[1724496094188,7.19926,2778.1,2777.6,2.4684]
[1724496094604,3.59959,2778.1,2777.6,2.4684]
[1724496094806,7.19925,2778.1,2777.6,2.4684]
[1724496095005,3.59959,2778.1,2777.6,2.4684]
[1724496095725,3.59959,2778.1,2777.6,6.06859]
[1724496095929,3.59991,2777.9,2777.6,2.4684]
[1724496097597,7.19935,2778.1,2777.6,2.4684]
[1724496098130,3.59973,2778.0,2777.6,2.4684]
[1724496098704,3.59985,2777.9,2777.6,2.4684]
[1724496099038,3.60005,2777.8,2777.6,2.4684]
[1724496099243,3.59985,2777.9,2777.6,2.4684]
[1724496099445,3.59969,2778.1,2777.6,3.72004971]
[1724496099816,3.59945,2778.2,2777.7,3.60008]
[1724496100327,3.59945,2778.2,2777.8,2.4684]
[1724496101145,3.59943,2778.3,2777.8,6.06834]
[1724496101312,3.59943,2778.3,2777.9,2.4684]
[1724496101720,7.19885,2778.3,2777.9,2.4684]
[1724496101939,3.59952,2778.2,2777.9,2.4684]
[1724496103132,3.59958,2778.1,2777.9,2.4684]
[1724496105122,3.60004,2777.8,2777.5,7.44]
[1724496106645,3.6001,2777.7,2777.5,7.44]
[1724496107218,3.60004,2777.8,2777.5,7.44]
[1724496108041,3.59979,2778.0,2777.5,7.44]
[1724496108265,7.19959,2778.0,2777.5,7.44]
[1724496108438,3.59979,2778.0,2777.5,11.04025]
[1724496108629,3.59979,2778.0,2777.6,2.3112]
[1724496108829,8.45074971,2778.2,2777.6,5.91142]
[1724496109240,3.59954,2778.2,2777.6,5.91135]
[1724496109430,7.19908,2778.2,2777.6,5.91135]
[1724496109826,3.59954,2778.2,2777.6,5.91135]
[1724496110032,3.59939,2778.3,2777.8,3.59993]
[1724496110244,3.59939,2778.3,2777.9,2.3112]
[1724496110495,3.59946,2778.2,2777.9,2.3112]
[1724496111854,7.19901,2778.2,2777.9,2.3112]
[1724496112029,3.59946,2778.2,2777.9,2.3112]
[1724496114155,7.19901,2778.2,2777.9,2.3112]
[1724496114563,3.59946,2778.2,2777.9,2.3112]
[1724496115260,7.199,2778.2,2777.9,2.3112]
[1724496115665,3.59946,2778.2,2777.9,2.3112]
[1724496116169,3.59964,2778.1,2777.7,2.3112]
[1724496116471,3.59984,2777.9,2777.7,2.3112]
[1724496117155,3.59964,2778.1,2777.7,2.3112]
[1724496117341,3.59941,2778.3,2777.7,2.3112]
[1724496117546,3.59949,2778.2,2777.8,2.3112]
[1724496119736,3.59919,2778.4,2777.8,2.3112]
[1724496119965,3.60011,2777.7,2777.3,2.3112]
[1724496120161,7.20029,2777.7,2777.3,2.3112]
[1724496120471,3.60009,2777.8,2777.3,2.3112]
[1724496121247,3.60019,2777.7,2777.3,2.3112]
[1724496122456,4.320218,2777.7,2777.3,2.3112]
[1724496122968,3.60023,2777.6,2777.3,2.3112]
[1724496126386,3.60008,2777.8,2777.3,2.3112]
[1724496127373,4.27564046,2777.9,2777.3,2.3112]
[1724496127571,3.60039,2777.5,2777.3,2.3112]
[1724496129388,4.320448,2777.5,2777.1,0.00541471]
[1724496129685,3.60039,2777.5,2777.1,0.00541471]
[1724496130275,3.60039,2777.5,2777.2,2.3394]
[1724496130690,3.60023,2777.6,2777.2,2.3394]
[1724496133859,3.60023,2777.6,2777.2,5.94013]
[1724496134487,5.48506918,2777.9,2777.3,3.60049]
[1724496134790,7.19985,2777.9,2777.4,3.60046]
[1724496134990,3.59997,2777.8,2777.4,3.60046]
[1724496135169,3.59997,2777.8,2777.3,3.60061]
[1724496135878,4.50847392,2777.8,2777.3,3.60061]
[1724496136194,4.50847392,2777.8,2777.2,10.79239971]
[1724496137175,4.50847392,2777.8,2777.2,7.19171971]
[1724496137778,4.50847392,2777.8,2777.2,10.79238971]
[1724496137975,0.90850392,2777.8,2777.2,7.19171971]
[1724496138201,3.60011,2777.7,2777.2,7.19171971]
[1724496139870,3.60011,2777.7,2777.3,2.3394]
[1724496140408,7.2003,2777.7,2777.3,2.3394]
[1724496140603,3.60011,2777.7,2777.3,2.3394]
[1724496142192,1.18064603,2778.0,2777.3,2.3394]
[1724496142387,7.20035,2777.7,2777.3,2.3394]
[1724496142890,3.60016,2777.7,2777.3,2.3394]
[1724496146913,3.60023,2777.6,2777.1,2.3141]
[1724496147289,3.60023,2777.6,2777.1,3.77476697]
[1724496147885,3.60056,2777.4,2777.1,2.3141]
[1724496148083,7.20117,2777.4,2776.9,9.7541]
[1724496148622,3.60056,2777.4,2776.9,9.7541]
[1724496149491,7.20114,2777.4,2776.9,9.7541]
[1724496149799,3.60056,2777.4,2777.0,2.881533]
[1724496153127,3.60081,2777.2,2776.9,7.44]
[1724496154899,3.60081,2777.2,2776.6,7.10948971]
[1724496155123,3.60081,2777.2,2776.7,3.60139]
[1724496160105,7.20166,2777.2,2776.6,7.10956971]
[1724496160317,3.60081,2777.2,2776.6,10.47069168]
[1724496161037,3.60081,2777.2,2776.7,3.60136]
[1724496164212,5.85984,2777.4,2776.7,3.60136]
[1724496164409,3.60069,2777.3,2776.8,3.60125]
[1724496164938,3.60069,2777.3,2776.7,3.60131]
[1724496165151,3.60069,2777.3,2776.7,4.83101628]
[1724496165321,3.60069,2777.3,2776.8,1.25164971]
[1724496165647,1.884037,2777.5,2777.0,1.25164971]
[1724496165816,5.483907,2777.9,2777.4,4.85209971]
[1724496166017,4.7380207,2777.8,2777.4,1.25164971]
[1724496166223,3.60013,2777.7,2777.3,2.3992]
[1724496167250,3.60013,2777.7,2777.2,4.85230971]
[1724496167957,3.59999,2777.8,2777.2,4.85230971]
[1724496168103,3.59999,2777.8,2777.2,10.28222268]
[1724496168509,7.20003,2777.8,2777.2,6.68155268]
[1724496168743,3.60016,2777.7,2777.2,6.68155268]
[1724496168945,3.60016,2777.7,2777.3,0.56336923]
[1724496169120,3.60016,2777.7,2777.2,4.85230971]
[1724496169322,5.89676,2777.7,2777.3,0.56337568]
[1724496169535,3.60016,2777.7,2777.2,4.85230971]
[1724496169849,3.60016,2777.7,2777.3,0.56337807]
[1724496170054,3.60016,2777.7,2777.2,4.85230971]
[1724496170252,3.60016,2777.7,2777.3,0.56337812]
[1724496170567,3.60016,2777.7,2777.2,4.85230971]
[1724496170744,3.60016,2777.7,2777.3,0.5633763]
[1724496170924,3.60016,2777.7,2777.1,6.00007]
[1724496171118,3.60016,2777.7,2777.2,0.56337741]
[1724496171326,3.60016,2777.7,2777.3,0.56337741]
[1724496171538,3.60016,2777.7,2777.1,7.82933697]
[1724496171850,3.60016,2777.7,2777.2,0.56336679]
[1724496172047,3.60016,2777.7,2777.3,0.56336679]
[1724496172348,3.60016,2777.7,2777.1,7.82933697]
[1724496172527,3.60016,2777.7,2777.2,0.56337645]
[1724496172728,3.60016,2777.7,2777.1,7.82933697]
[1724496172947,3.60016,2777.7,2777.2,0.56339392]
[1724496173121,3.60016,2777.7,2777.1,7.82933697]
[1724496173445,5.48038501,2777.8,2777.1,2.3992]
[1724496173446,3.60032,2777.6,2777.1,2.3992]
[1724496173646,2.2966,2777.3,2777.0,7.44]
[1724496173946,3.60082,2777.2,2777.0,7.44]
[1724496178602,3.60082,2777.2,2776.7,7.25220971]
[1724496181990,3.60082,2777.2,2776.7,6.00056]
[1724496182193,3.60057,2777.4,2776.7,6.00056]
[1724496182394,3.60057,2777.4,2776.8,4.85290971]
[1724496182594,3.60066,2777.3,2776.8,4.85290971]
[1724496182795,3.60066,2777.3,2776.8,5.93825668]
[1724496183118,1.88625958,2777.6,2777.0,1.25164971]
[1724496183269,3.60023,2777.6,2777.1,3.60087]
[1724496185023,3.60023,2777.6,2777.0,7.24924971]
[1724496185209,3.60038,2777.5,2777.0,7.24924971]
[1724496185575,7.20085,2777.5,2777.0,7.24924971]
[1724496186001,3.60038,2777.5,2777.0,7.24924971]
[1724496187101,7.20081,2777.5,2777.0,7.24924971]
[1724496187297,3.60038,2777.5,2777.0,7.24924971]
[1724496188583,7.20086,2777.5,2777.0,7.24924971]
[1724496188899,3.60049,2777.4,2777.0,3.64824971]
[1724496194419,3.60049,2777.4,2777.0,4.40698536]
[1724496195303,3.60025,2777.6,2777.1,2.4529]
[1724496195890,5.4867562,2777.7,2777.4,1.25164971]
[1724496196087,1.8866562,2777.8,2777.5,2.4529]
[1724496196290,1.8866562,2777.8,2777.7,2.4529]
[1724496196627,1.8866562,2777.8,2777.7,6.053]
[1724496196988,1.8866562,2777.9,2777.7,2.4529]
[1724496197328,1.8866562,2777.9,2777.8,1.25164971]
[1724496197492,3.59953,2778.2,2777.8,1.25164971]
[1724496198594,3.59953,2778.2,2777.9,2.4529]
[1724496198789,1.88535445,2778.5,2778.0,1.25164971]
[1724496198990,1.88535445,2778.5,2777.9,3.18336397]
[1724496198991,3.59921,2778.4,2778.2,1.25164971]
[1724496200102,7.19848,2778.4,2778.2,1.25164971]
[1724496200312,7.19848,2778.4,2778.1,2.4529]
[1724496200313,3.59921,2778.4,2778.1,2.4529]
[1724496200824,3.59912,2778.5,2778.1,2.4529]
[1724496201811,3.59926,2778.4,2778.1,2.4529]
[1724496202301,3.59912,2778.5,2778.1,2.4529]
[1724496202736,3.5992,2778.4,2778.1,2.4529]
[1724496204906,3.59945,2778.2,2777.8,3.72854971]
[1724496205415,3.59996,2777.9,2777.7,7.44]
[1724496205614,3.59996,2777.9,2777.5,3.72854971]
[1724496205920,3.59996,2777.9,2777.5,2.4769]
[1724496206514,3.59972,2778.0,2777.5,2.4769]
[1724496207942,3.59999,2777.8,2777.5,2.4769]
[1724496208561,7.19954,2778.0,2777.5,2.4769]
[1724496209957,3.59985,2777.9,2777.5,2.4769]
[1724496210159,3.59986,2777.9,2777.5,3.72854971]
[1724496216080,3.59972,2778.0,2777.5,7.32889971]
[1724496220811,7.19951,2778.0,2777.5,7.32889971]
[1724496221120,3.59989,2777.9,2777.5,2.4769]
[1724496223589,3.59998,2777.8,2777.5,2.4769]
[1724496234407,7.20002,2777.8,2777.5,2.4769]
[1724496234631,3.59998,2777.8,2777.5,2.4769]
[1724496235148,3.6001,2777.7,2777.5,2.4769]
[1724496237540,3.59998,2777.8,2777.5,2.4769]
[1724496237759,7.20005,2777.8,2777.5,2.4769]
[1724496237987,3.59998,2777.8,2777.5,2.4769]
[1724496238318,7.20005,2777.8,2777.5,2.4769]
[1724496238471,3.6001,2777.7,2777.5,2.4769]
[1724496240941,3.59998,2777.8,2777.5,2.4769]
[1724496240942,7.20006,2777.8,2777.5,2.4769]
[1724496241455,3.59998,2777.8,2777.5,2.4769]
[1724496242331,7.20004,2777.8,2777.5,2.4769]
[1724496242841,3.60023,2777.6,2777.5,2.4769]
[1724496243040,3.60042,2777.5,2777.3,2.2719]
[1724496243273,3.60048,2777.4,2777.3,2.2719]
[1724496244258,3.60023,2777.6,2777.3,2.2719]
[1724496244602,3.6001,2777.7,2777.3,2.2719]
[1724496244985,7.20027,2777.7,2777.3,2.2719]
[1724496245138,3.6001,2777.7,2777.3,2.2719]
[1724496245689,5.48567788,2777.8,2777.3,5.87244]
[1724496245933,3.59993,2777.9,2777.5,2.2719]
[1724496245934,9.08554788,2777.9,2777.5,2.2719]
[1724496246099,3.6,2777.8,2777.5,2.2719]
[1724496247441,5.48569788,2777.8,2777.5,2.2719]
[1724496248000,3.6001,2777.7,2777.5,2.2719]
[1724496250479,5.48579788,2777.7,2777.5,2.2719]
[1724496251182,1.88569788,2777.6,2777.5,2.2719]
[1724496252382,3.60023,2777.6,2777.5,2.2719]
[1724496252984,5.48592788,2777.6,2777.5,2.2719]
[1724496253170,3.60023,2777.6,2777.5,2.2719]
[1724496253960,5.48592788,2777.6,2777.5,2.2719]
[1724496254960,5.48879914,2777.6,2777.5,2.2719]
[1724496257322,3.60023,2777.6,2777.5,2.2719]
[1724496260413,9.08886914,2777.7,2777.5,2.2719]
[1724496260617,5.48866914,2777.7,2777.5,2.2719]
[1724496261415,9.08885914,2777.7,2777.5,2.2719]
[1724496262083,5.48866914,2777.7,2777.5,2.2719]
[1724496262284,9.08883914,2777.7,2777.5,2.2719]
[1724496262595,9.08888914,2777.7,2777.5,2.2719]
[1724496263324,5.48866914,2777.7,2777.5,2.2719]
[1724496264023,9.08885914,2777.7,2777.5,2.2719]
[1724496264525,5.48866914,2777.7,2777.5,2.2719]
[1724496264818,5.48905712,2777.7,2777.5,2.2719]
[1724496265019,1.88895712,2777.9,2777.7,2.4837]
[1724496265220,7.75541566,2778.0,2777.7,2.4837]
[1724496265522,5.48866712,2778.0,2777.7,2.4837]
[1724496265723,3.59987,2777.9,2777.7,2.4837]
[1724496266524,5.48882712,2777.9,2777.7,2.4837]
[1724496266725,1.88895712,2777.9,2777.7,2.4837]
[1724496266898,3.59984,2777.9,2777.7,2.4837]
[1724496267523,5.48866712,2778.0,2777.8,1.25164971]
[1724496267695,3.59971,2778.0,2777.9,2.4837]
[1724496268708,1.88895712,2778.1,2777.9,2.4837]
[1724496268914,1.88895712,2778.2,2778.0,1.25164971]
[1724496269090,1.88895712,2778.4,2778.1,2.85723497]
[1724496269298,1.8883138,2778.5,2778.4,2.4837]
[1724496270312,5.4873938,2778.5,2778.4,2.4837]
[1724496271279,3.59897,2778.6,2778.4,2.4837]
[1724496271280,1.8883138,2778.6,2778.4,2.4837]
[1724496271510,5.4872638,2778.6,2778.4,2.4837]
[1724496273179,1.8883138,2778.7,2778.5,1.25164971]
[1724496273380,3.59872,2778.8,2778.6,2.4837]
[1724496273585,7.19751,2778.8,2778.6,2.4837]
[1724496273820,3.5988,2778.7,2778.6,2.4837]
[1724496275633,1.88669983,2779.0,2778.6,2.4837]
[1724496275933,2.07536981,2779.0,2778.6,2.4837]
[1724496276522,3.59872,2778.8,2778.6,2.4837]
[1724496277992,3.5985,2779.0,2778.6,2.4837]
[1724496278399,7.19701,2779.0,2778.6,2.4837]
[1724496278932,3.59854,2778.9,2778.6,2.4837]
[1724496280110,3.59868,2778.8,2778.6,2.4837]
[1724496281229,3.59847,2779.0,2778.6,2.4837]
[1724496281411,5.48487983,2779.2,2778.6,6.81606397]
[1724496281613,5.48487983,2779.2,2778.7,2.4837]
[1724496281614,3.59835,2779.1,2778.7,2.4837]
[1724496281943,3.59835,2779.1,2778.8,1.25164971]
[1724496282146,3.59835,2779.1,2778.9,2.4837]
[1724496283247,3.59818,2779.2,2778.9,2.4837]
[1724496285495,1.25164971,2779.0,2778.4,2.4772]
[1724496286000,3.59893,2778.6,2778.4,2.4772]
[1724496286610,3.59889,2778.7,2778.4,2.4772]
[1724496286813,3.59888,2778.7,2778.4,2.4772]
[1724496288503,7.19723,2778.9,2778.4,2.4772]
[1724496288741,3.5988,2778.7,2778.4,2.4772]
[1724496288914,3.5988,2778.7,2778.2,14.76820971]
[1724496290230,3.5988,2778.7,2778.2,18.15099468]
[1724496291105,3.5988,2778.7,2778.2,16.89934497]
[1724496291332,3.5988,2778.7,2778.2,13.51656]
[1724496291513,3.5988,2778.7,2778.2,6.07656]
[1724496292252,3.5988,2778.7,2778.2,9.67593]
[1724496292399,3.5988,2778.7,2778.2,6.07656]
[1724496292603,3.5988,2778.7,2778.2,2.4772]
[1724496293039,3.5988,2778.7,2778.3,3.59931]
[1724496293373,8.44890971,2778.9,2778.3,3.59931]
[1724496293541,8.44890971,2778.9,2778.4,2.4772]
[1724496293542,3.59862,2778.9,2778.4,2.4772]
[1724496293906,3.59845,2779.0,2778.4,2.4772]
[1724496294107,3.59837,2779.1,2778.6,2.4772]
[1724496294316,4.11723436,2779.1,2778.6,2.4772]
[1724496294967,4.11723436,2779.1,2778.6,6.07608]
[1724496295266,3.59837,2779.1,2778.7,3.59879]
[1724496296470,3.59837,2779.1,2778.6,2.4772]
[1724496296767,8.44789971,2779.3,2778.7,3.59875]
[1724496296967,3.59818,2779.2,2778.8,2.4772]
[1724496297117,3.59818,2779.2,2778.8,6.07587]
[1724496297318,3.598,2779.4,2778.8,6.07587]
[1724496297534,3.59811,2779.3,2778.8,6.07587]
[1724496298015,3.59784,2779.5,2778.9,3.59851]
[1724496298572,3.59784,2779.5,2779.0,2.4772]
[1724496298807,7.19569,2779.5,2779.0,2.4772]
[1724496299107,3.59793,2779.4,2779.0,2.4772]
[1724496299453,3.59793,2779.4,2779.0,6.0756]
[1724496299656,3.59765,2779.6,2779.0,6.0756]
[1724496299908,3.59783,2779.5,2779.1,2.4772]
[1724496300662,3.59791,2779.4,2779.1,2.4772]
[1724496301409,3.59802,2779.3,2779.1,2.4772]
[1724496301724,3.59802,2779.3,2778.8,2.4772]
[1724496301725,4.317613,2779.3,2778.8,2.4772]
[1724496302005,3.59802,2779.3,2778.8,2.4772]
[1724496303620,3.59829,2779.1,2778.8,2.4772]
[1724496304120,3.59857,2778.9,2778.7,7.44]
[1724496304312,3.59867,2778.8,2778.7,7.44]
[1724496305091,3.59857,2778.9,2778.7,7.44]
[1724496306409,3.59857,2778.9,2778.5,2.2962]
[1724496306609,7.19722,2778.9,2778.5,2.2962]
[1724496306811,3.59857,2778.9,2778.5,2.2962]
[1724496307600,3.59868,2778.8,2778.5,2.2962]
[1724496308108,3.59857,2778.9,2778.5,2.2962]
[1724496308316,3.59867,2778.8,2778.5,2.2962]
[1724496308472,3.59881,2778.7,2778.5,2.2962]
[1724496308812,3.599,2778.6,2778.3,2.85935369]
[1724496308989,3.599,2778.6,2778.3,2.2962]
[1724496309393,3.59876,2778.8,2778.3,5.89549]
[1724496309974,3.59863,2778.9,2778.3,6.61020397]
[1724496310308,3.59862,2778.9,2778.3,6.61020397]
[1724496310511,3.59875,2778.8,2778.3,6.61020397]
[1724496310677,3.59881,2778.7,2778.3,2.2962]
[1724496310876,3.59908,2778.5,2778.3,2.2962]
[1724496312519,7.19773,2778.7,2778.3,2.2962]
[1724496312890,3.59881,2778.7,2778.3,2.2962]
[1724496313327,3.59893,2778.6,2778.3,2.2962]
[1724496315406,3.59907,2778.5,2778.3,2.2962]
[1724496315939,3.59907,2778.5,2778.1,2.2962]
[1724496316182,3.59907,2778.5,2778.1,5.89576]
[1724496316386,1.8870328,2778.6,2778.1,5.89576]
[1724496316558,3.599,2778.6,2778.1,5.89576]
[1724496316741,5.4860328,2778.6,2778.1,2.2962]
[1724496317149,5.4860328,2778.6,2778.1,5.89577]
[1724496317387,3.599,2778.6,2778.1,5.89577]
[1724496317691,3.599,2778.6,2778.1,2.2962]
[1724496317862,5.4860328,2778.6,2778.1,2.2962]
[1724496318076,5.4860328,2778.6,2778.1,5.89575]
[1724496318648,3.599,2778.6,2778.1,5.89575]
[1724496319151,3.599,2778.6,2778.2,3.54784971]
[1724496319361,3.599,2778.6,2778.3,2.2962]
[1724496319577,5.4858328,2778.7,2778.3,2.2962]
[1724496319889,3.5988,2778.7,2778.3,2.2962]
[1724496320703,1.88717276,2778.9,2778.5,2.2962]
[1724496320909,5.86295731,2779.1,2778.7,2.2962]
[1724496320910,1.88717276,2779.0,2778.7,2.2962]
[1724496321086,5.48559276,2779.0,2778.7,2.2962]
[1724496321264,3.59842,2779.0,2778.7,2.2962]
[1724496324476,7.19693,2779.0,2778.7,2.2962]
[1724496324681,3.59842,2779.0,2778.7,2.2962]
[1724496324885,7.19691,2779.0,2778.7,2.2962]
[1724496325295,3.59857,2778.9,2778.7,2.2962]
[1724496328502,5.48559276,2779.0,2778.7,2.2962]
[1724496328680,3.59842,2779.0,2778.7,2.2962]
[1724496329075,7.19694,2779.0,2778.7,2.2962]
[1724496329302,3.59854,2778.9,2778.7,2.2962]
[1724496329690,5.48555276,2779.1,2778.7,2.2962]
[1724496329888,7.19616,2779.3,2779.0,1.25164971]
[1724496330216,3.59805,2779.3,2779.1,2.3628]
[1724496330528,3.59778,2779.5,2779.3,2.3628]
[1724496330901,3.59764,2779.6,2779.3,2.3628]
[1724496331916,5.48500862,2779.8,2779.5,2.3628]
[1724496332119,3.59757,2779.7,2779.5,2.3628]
[1724496332321,3.59763,2779.6,2779.5,2.3628]
[1724496333549,3.59757,2779.7,2779.5,2.3628]
[1724496334662,5.48276153,2780.0,2779.5,7.21218971]
[1724496334800,3.59727,2779.9,2779.5,2.3628]
[1724496340728,7.19418,2780.1,2779.5,5.96055]
[1724496340929,3.59714,2780.0,2779.6,2.4179]
[1724496343955,3.59699,2780.1,2779.8,2.345]
[1724496345657,3.59669,2780.4,2779.8,2.939263]
[1724496345861,3.59669,2780.4,2779.9,2.345]
[1724496345862,3.59688,2780.2,2779.9,2.345]
[1724496349062,3.59688,2780.2,2779.9,2.345]
[1724496349625,3.59669,2780.4,2779.9,2.345]
[1724496350026,3.59682,2780.3,2779.9,2.345]
[1724496350736,3.59686,2780.2,2779.9,2.345]
[1724496352730,3.59699,2780.1,2779.9,2.345]
[1724496352935,3.59699,2780.1,2779.6,2.345]
[1724496352936,3.59725,2779.9,2779.6,2.345]
[1724496354470,3.59766,2779.6,2779.4,2.345]
[1724496355443,7.19492,2779.8,2779.4,2.345]
[1724496356068,3.59743,2779.8,2779.4,2.345]
[1724496356544,3.59743,2779.8,2779.4,3.683314]
[1724496356971,7.19491,2779.8,2779.4,3.683314]
[1724496357279,3.59743,2779.8,2779.4,3.683314]
[1724496360297,3.59743,2779.8,2779.4,2.345]
[1724496362145,3.59744,2779.8,2779.4,2.345]
[1724496362344,3.59678,2780.3,2779.2,2.345]
[1724496362345,3.59776,2779.5,2779.2,2.345]
[1724496362785,3.59762,2779.7,2779.2,2.345]
[1724496363162,3.59765,2779.6,2779.2,2.345]
[1724496366305,3.59762,2779.7,2779.2,5.94315]
[1724496366604,3.5976,2779.7,2779.2,5.94315]
[1724496366805,7.19521,2779.7,2779.2,5.94315]
[1724496366963,3.5976,2779.7,2779.2,5.94315]
[1724496367301,7.19518,2779.7,2779.2,5.94315]
[1724496367503,3.59758,2779.7,2779.2,5.94315]
[1724496367660,3.59766,2779.6,2779.2,5.94315]
[1724496367860,3.59758,2779.7,2779.2,5.94315]
[1724496369266,3.59758,2779.7,2779.3,2.3659]
[1724496369589,8.03983397,2779.7,2779.3,2.3659]
[1724496369784,4.44223397,2779.7,2779.3,2.3659]
[1724496370605,3.59764,2779.6,2779.3,2.3659]
[1724496373294,3.59779,2779.5,2779.3,2.3659]
[1724496375944,3.59764,2779.6,2779.3,2.3659]
[1724496376451,3.59778,2779.5,2779.3,2.3659]
[1724496382969,7.19566,2779.5,2779.3,2.3659]
[1724496383262,3.59778,2779.5,2779.3,2.3659]
[1724496385418,3.59789,2779.4,2779.3,2.3659]
[1724496385794,3.59789,2779.4,2779.0,2.3176]
[1724496387632,3.59789,2779.4,2779.0,3.269071]
[1724496388058,3.59789,2779.4,2779.0,6.867471]
[1724496388962,3.59777,2779.5,2779.1,2.3176]
[1724496393281,3.5979,2779.4,2779.2,0.5629778]
[1724496393477,3.5979,2779.4,2779.1,2.3176]
[1724496393686,3.5979,2779.4,2779.2,0.5629781]
[1724496393873,3.5979,2779.4,2779.1,2.3176]
[1724496394211,3.5979,2779.4,2779.2,0.56297851]
[1724496394407,3.5979,2779.4,2779.3,0.56297851]
[1724496398027,3.5979,2779.4,2779.1,2.3176]
[1724496398225,3.5979,2779.4,2779.2,0.56298445]
[1724496398529,3.5979,2779.4,2779.1,2.3176]
[1724496398828,5.48500475,2779.4,2779.2,2.3176]
[1724496400219,1.89054376,2779.3,2779.0,2.3176]
[1724496400388,3.59828,2779.1,2778.8,2.3176]
[1724496400591,3.59854,2778.9,2778.8,2.3176]
[1724496400817,1.89014844,2779.0,2778.8,2.3176]
[1724496401015,5.48859844,2779.0,2778.8,2.3176]
[1724496401330,5.48838844,2779.2,2778.9,2.3176]
[1724496402427,1.89014844,2779.1,2778.9,2.3176]
[1724496403329,5.48838844,2779.2,2778.9,2.3176]
[1724496404195,3.59824,2779.2,2778.9,2.3176]
[1724496404392,1.89014844,2779.3,2778.9,3.56924971]
[1724496404703,1.25164971,2780.0,2779.2,2.4484]
[1724496404906,1.88904711,2779.5,2779.2,2.4484]
[1724496406133,1.88904711,2779.5,2779.2,6.04655]
[1724496406704,1.88904711,2779.5,2779.2,2.4484]
[1724496406910,1.88904711,2779.4,2779.2,2.4484]
[1724496407407,1.88904711,2779.5,2779.2,3.053069]
[1724496407611,5.86443654,2779.7,2779.2,3.053069]
[1724496407612,1.88904711,2779.6,2779.2,3.053069]
[1724496407939,1.88904711,2779.5,2779.2,3.053069]
[1724496408110,1.88904711,2779.5,2779.3,0.6651309]
[1724496408587,1.88904711,2779.5,2779.4,2.4484]
[1724496409709,1.88915377,2779.5,2779.4,2.4484]
[1724496412508,5.48691377,2779.5,2779.2,2.4484]
[1724496412693,1.88927109,2779.4,2779.2,2.4484]
[1724496413094,1.88927109,2779.4,2779.2,3.053081]
[1724496413300,1.88927109,2779.6,2779.4,2.4484]
[1724496413548,1.88927109,2779.7,2779.4,2.4484]
[1724496414558,1.88908046,2779.7,2779.4,2.4484]
[1724496414737,1.88908046,2779.7,2779.4,3.23866807]
[1724496414901,1.88908046,2779.7,2779.5,2.4484]
[1724496416043,5.48660046,2779.7,2779.5,2.4484]